bitfinex-derivatives/quotes_SOLF0:USTF0_20250105
["timestamp","ask_amount","ask_price","bid_price","bid_amount"]
[1736116757529,7.43766,214.54,214.52,2.3311]
[1736116758031,2.52,214.55,214.52,2.3311]
[1736116758232,9.95766,214.55,214.53,2.331]
[1736116758435,2.52,214.55,214.53,2.331]
[1736116758933,2.54,214.56,214.55,2.3307]
[1736116759124,9.97766,214.56,214.55,2.3307]
[1736116762128,2.54,214.56,214.49,79.12783603]
[1736116762427,7.43766,214.55,214.49,79.12783603]
[1736116763530,7.43766,214.55,214.54,2.3308]
[1736116767841,14.01,214.82,214.52,7.43766]
[1736116768043,7.43766,214.59,214.52,7.43766]
[1736116768544,7.43766,214.59,214.58,2.3304]
[1736116769044,7.43766,214.59,214.52,7.43766]
[1736116769545,7.43766,214.57,214.5,7.43766]
[1736116769948,7.43766,214.57,214.55,2.3307]
[1736116770845,7.43766,214.57,214.52,91.57126259]
[1736116771448,7.43766,214.57,214.54,2.3308]
[1736116772446,7.43766,214.57,214.52,91.57126259]
[1736116772447,2.54,214.6,214.52,91.57126259]
[1736116772945,2.54,214.6,214.55,2.3307]
[1736116773147,7.43766,214.58,214.55,2.3307]
[1736116773347,7.43766,214.58,214.51,10.82976461]
[1736116773546,9.97766,214.6,214.56,2.3306]
[1736116774248,2.54,214.6,214.56,2.3306]
[1736116774450,7.43766,214.6,214.56,2.3306]
[1736116774952,2.3301,214.61,214.53,7.43766]
[1736116774953,7.43766,214.61,214.53,7.43766]
[1736116775750,7.43766,214.61,214.58,2.3304]
[1736116776148,7.43766,214.61,214.59,2.3303]
[1736116781755,2.54,214.62,214.59,2.3303]
[1736116781954,7.43766,214.61,214.59,2.3303]
[1736116782451,2.54,214.62,214.59,2.3303]
[1736116782754,7.43766,214.6,214.59,2.3303]
[1736116784355,7.43766,214.6,214.51,102.40707235]
[1736116784552,2.54,214.62,214.58,2.3304]
[1736116784849,2.54,214.62,214.51,102.40707235]
[1736116785053,2.54,214.62,214.58,2.3304]
[1736116785648,2.54,214.62,214.51,102.40707235]
[1736116785849,7.43766,214.58,214.57,2.3305]
[1736116788058,7.43766,214.58,214.56,2.3306]
[1736116788264,7.43766,214.57,214.56,2.3306]
[1736116789067,4.8701,214.62,214.56,2.3306]
[1736116789269,7.43766,214.57,214.56,2.3306]
[1736116800375,10.11766,214.57,214.51,3.39210461]
[1736116800676,7.43766,214.52,214.44,7.43766]
[1736116800970,2.68,214.52,214.46,7.43766]
[1736116801175,2.68,214.52,214.46,102.96487962]
[1736116802474,2.68,214.52,214.51,2.3312]
[1736116803872,7.43766,214.54,214.46,102.96487962]
[1736116804070,7.43766,214.54,214.52,2.331]
[1736116806974,2.68,214.55,214.52,2.331]
[1736116807172,10.11766,214.55,214.52,2.331]
[1736116812680,7.43766,214.53,214.52,2.331]
[1736116817082,2.68,214.55,214.52,2.331]
[1736116817284,7.43766,214.53,214.52,2.331]
[1736116830290,7.43766,214.53,214.51,2.3312]
[1736116830488,7.43766,214.52,214.44,7.43766]
[1736116830894,7.43766,214.52,214.5,2.3312]
[1736116835095,7.43766,214.52,214.45,5.64209865]
[1736116835302,7.43766,214.48,214.4,7.43766]
[1736116835498,10.07766,214.49,214.41,7.43766]
[1736116836400,10.07766,214.49,214.47,2.3316]
[1736116842606,10.07766,214.49,214.45,2.3318]
[1736116842807,10.07766,214.49,214.41,7.43766]
[1736116843308,7.43766,214.47,214.41,7.43766]
[1736116843507,7.43766,214.47,214.42,2.3321]
[1736116843706,7.43766,214.47,214.41,7.43766]
[1736116845106,7.43766,214.47,214.42,2.3321]
[1736116845307,7.43766,214.47,214.4,114.07506477]
[1736116846611,7.43766,214.47,214.44,2.3318]
[1736116847010,7.43766,214.47,214.45,2.3318]
[1736116850114,2.64,214.49,214.42,7.43766]
[1736116850317,2.64,214.49,214.48,2.3315]
[1736116851815,10.05766,214.5,214.49,2.3314]
[1736116852315,2.62,214.5,214.49,2.3314]
[1736116852517,10.05766,214.5,214.49,2.3314]
[1736116854819,7.43766,214.5,214.49,2.3314]
[1736116855019,10.05766,214.5,214.49,2.3314]
[1736116855917,10.05766,214.5,214.4,106.63740477]
[1736116856117,7.43766,214.48,214.45,2.3318]
[1736116860120,7.43766,214.46,214.4,106.63740477]
[1736116860424,7.43766,214.46,214.44,2.3319]
[1736116860924,7.43766,214.46,214.43,2.332]
[1736116864421,4.32236556,214.58,214.41,7.43766]
[1736116864724,7.43766,214.49,214.46,2.3316]
[1736116865023,2.62,214.48,214.46,2.3316]
[1736116867125,2.62,214.48,214.47,2.3316]
[1736116867325,2.62,214.48,214.4,106.63740477]
[1736116867533,2.62,214.48,214.4,114.07506477]
[1736116868228,2.62,214.48,214.45,2.3317]
[1736116868526,2.3314,214.49,214.45,2.3317]
[1736116868825,10.05766,214.48,214.45,2.3317]
[1736116869024,7.43766,214.46,214.45,2.3317]
[1736116869325,10.05766,214.48,214.45,2.3317]
[1736116873227,7.43766,214.46,214.45,2.3317]
[1736116873630,7.43766,214.46,214.4,106.63740477]
[1736116873825,7.43766,214.46,214.43,2.332]
[1736116874227,7.43766,214.44,214.43,2.332]
[1736116874531,7.43766,214.44,214.4,106.63740477]
[1736116874725,2.62,214.43,214.41,2.3322]
[1736116879337,2.62,214.43,214.42,2.3322]
[1736116882037,10.05766,214.43,214.42,2.3322]
[1736116882739,2.62,214.43,214.42,2.3322]
[1736116890239,4.6595,214.65,214.4,100.99437276]
[1736116890444,7.43766,214.49,214.48,2.3315]
[1736116890737,10.03766,214.49,214.48,2.3315]
[1736116894543,10.03766,214.49,214.41,8.82396]
[1736116894743,2.6,214.49,214.41,8.82396]
[1736116894945,10.03766,214.49,214.41,8.82396]
[1736116896445,10.03766,214.49,214.47,2.3316]
[1736116902452,12.36906,214.49,214.45,2.3318]
[1736116905954,10.03766,214.49,214.4,114.72845995]
[1736116907452,10.03766,214.49,214.45,2.3318]
[1736116910349,10.03766,214.49,214.4,114.72845995]
[1736116910653,10.03766,214.49,214.46,2.3317]
[1736116914472,2.6,214.49,214.46,2.3317]
[1736116914656,10.03766,214.49,214.46,2.3317]
[1736116919858,7.43766,214.49,214.46,2.3317]
[1736116920058,2.56,214.48,214.47,2.3316]
[1736116921652,4.8916,214.48,214.4,107.29079995]
[1736116921852,7.43766,214.45,214.4,107.29079995]
[1736116922363,7.43766,214.45,214.36,7.43766]
[1736116923261,7.43766,214.45,214.38,7.43766]
[1736116923463,7.43766,214.45,214.42,2.3321]
[1736116924860,7.43766,214.45,214.43,2.3321]
[1736116927355,2.3316,214.47,214.43,2.3321]
[1736116927554,7.43766,214.46,214.43,2.3321]
[1736116931863,7.43766,214.46,214.44,2.332]
[1736116959902,2.3315,214.48,214.44,2.332]
[1736116960096,2.56,214.48,214.39,7.43766]
[1736116960301,7.43766,214.48,214.41,7.43766]
[1736116960594,2.56,214.47,214.46,2.3317]
[1736116960799,7.43766,214.48,214.4,6.61697072]
[1736116960999,2.56,214.47,214.4,14.05463072]
[1736116961403,2.56,214.47,214.46,2.3317]
[1736116964102,2.56,214.47,214.4,6.61697072]
[1736116964306,7.43766,214.45,214.4,6.61697072]
[1736116965205,7.43766,214.45,214.44,2.332]
[1736116966811,2.56,214.47,214.45,2.3318]
[1736116967210,7.43766,214.46,214.45,2.3318]
[1736116974613,2.54,214.46,214.45,2.3318]
[1736116984727,9.97766,214.46,214.45,2.3318]
[1736116988432,9.97766,214.46,214.43,2.332]
[1736116989526,2.54,214.46,214.43,2.332]
[1736116989829,9.97766,214.46,214.44,2.3319]
[1736116998435,7.43766,214.46,214.44,2.3319]
[1736116998631,2.54,214.45,214.44,2.3319]
[1736117000031,2.3315,214.49,214.44,2.3319]
[1736117000235,7.43766,214.47,214.44,2.3319]
[1736117002840,7.43766,214.47,214.45,2.3318]
[1736117005041,2.56,214.46,214.45,2.3318]
[1736117025667,2.56,214.46,214.41,2.3322]
[1736117025862,7.43766,214.43,214.41,2.3322]
[1736117026466,2.56,214.42,214.41,2.3322]
[1736117027765,2.56,214.42,214.31,180.2535123]
[1736117027766,9.99766,214.42,214.31,180.2535123]
[1736117027960,7.43766,214.39,214.32,7.43766]
[1736117029467,7.43766,214.39,214.38,2.3326]
[1736117031067,9.99766,214.39,214.38,2.3326]
[1736117034071,2.3321,214.43,214.31,187.6911723]
[1736117034072,7.43766,214.4,214.31,187.6911723]
[1736117034266,2.56,214.39,214.31,187.6911723]
[1736117034773,2.56,214.39,214.38,2.3326]
[1736117038465,7.43766,214.4,214.31,187.6911723]
[1736117038672,7.43766,214.4,214.39,2.3325]
[1736117038972,9.99766,214.4,214.39,2.3325]
[1736117039173,2.56,214.4,214.39,2.3325]
[1736117039374,9.99766,214.4,214.39,2.3325]
[1736117055378,7.43766,214.4,214.39,2.3325]
[1736117055579,9.99766,214.4,214.39,2.3325]
[1736117058286,7.43766,214.4,214.39,2.3325]
[1736117059779,2.56,214.42,214.41,2.3323]
[1736117059979,9.99766,214.42,214.41,2.3323]
[1736117061182,7.43766,214.42,214.41,2.3323]
[1736117061386,9.99766,214.42,214.41,2.3323]
[1736117081890,9.99766,214.42,214.4,2.3324]
[1736117085396,9.99766,214.42,214.39,2.3325]
[1736117085908,9.99766,214.42,214.31,180.2535123]
[1736117086199,9.99766,214.42,214.4,2.3324]
[1736117086596,9.99766,214.42,214.31,180.2535123]
[1736117086799,9.99766,214.42,214.38,2.3325]
[1736117089396,9.99766,214.42,214.39,2.3325]
[1736117091401,12.32986,214.42,214.39,2.3325]
[1736117096098,2.3323,214.41,214.37,2.3326]
[1736117096301,7.43766,214.39,214.37,2.3326]
[1736117097094,9.97766,214.39,214.37,2.3326]
[1736117101902,9.97766,214.39,214.38,2.3326]
[1736117118917,2.54,214.39,214.38,2.3326]
[1736117192367,2.54,214.39,214.37,2.3327]
[1736117192671,7.43766,214.38,214.37,2.3327]
[1736117195277,7.43766,214.38,214.3,1.5242]
[1736117195479,7.43766,214.34,214.3,1.5242]
[1736117195681,7.43766,214.32,214.3,1.5242]
[1736117196683,7.43766,214.32,214.31,2.3334]
[1736117196882,7.43766,214.32,214.31,124.55041944]
[1736117205585,7.43766,214.32,214.31,9.1374849]
[1736117206489,7.43766,214.32,214.31,2.3334]
[1736117207183,7.43766,214.32,214.24,1.3962]
[1736117207489,4.8731,214.34,214.29,2.3335]
[1736117208489,7.43766,214.3,214.29,2.3335]
[1736117208786,7.43766,214.3,214.28,2.3337]
[1736117208986,9.97766,214.29,214.28,2.3337]
[1736117209989,9.97766,214.29,214.27,117.77087705]
[1736117210191,9.97766,214.29,214.27,115.43707705]
[1736117212992,2.3338,214.28,214.22,2.3344]
[1736117213287,7.43766,214.23,214.19,1.5163]
[1736117213491,2.54,214.22,214.19,1.5163]
[1736117213689,2.54,214.22,214.21,2.3345]
[1736117226197,2.54,214.22,214.17,2.3349]
[1736117226400,7.43766,214.19,214.15,9.79974003]
[1736117227496,7.43766,214.19,214.18,2.3348]
[1736117245911,9.97766,214.19,214.18,2.3348]
[1736117247715,2.54,214.19,214.18,2.3348]
[1736117247917,9.97766,214.19,214.18,2.3348]
[1736117256916,7.43766,214.19,214.18,2.3348]
[1736117257218,9.97766,214.19,214.18,2.3348]
[1736117274625,9.97766,214.19,214.15,9.79974003]
[1736117274829,7.43766,214.17,214.15,9.79974003]
[1736117276030,7.43766,214.17,214.16,2.335]
[1736117276534,7.43766,214.17,214.06,6.45300278]
[1736117276731,7.43766,214.13,214.06,6.45300278]
[1736117276923,9.97766,214.13,214.06,6.45300278]
[1736117277231,9.97766,214.13,214.06,4.13436662]
[1736117277935,9.97766,214.13,214.05,13.89066278]
[1736117278136,9.97766,214.13,214.12,2.3354]
[1736117283038,2.54,214.13,214.12,2.3354]
[1736117283239,9.97766,214.13,214.12,2.3354]
[1736117286042,2.54,214.13,214.12,2.3354]
[1736117286239,9.97766,214.13,214.12,2.3354]
[1736117286939,2.54,214.13,214.12,2.3354]
[1736117287141,9.97766,214.13,214.12,2.3354]
[1736117287341,5.7525943,214.19,214.09,115.52793479]
[1736117287635,2.54,214.18,214.15,2.3351]
[1736117289054,2.54,214.18,214.09,115.52793479]
[1736117289547,7.43766,214.14,214.09,115.52793479]
[1736117289754,2.54,214.13,214.09,115.52793479]
[1736117290452,2.54,214.13,214.1,2.3356]
[1736117290649,2.54,214.13,214.09,115.52793479]
[1736117291655,2.54,214.13,214.12,2.3354]
[1736117303257,2.54,214.13,214.09,115.52793479]
[1736117304563,2.54,214.13,214.12,2.3354]
[1736117311666,9.97766,214.13,214.12,2.3354]
[1736117312171,2.54,214.13,214.12,2.3354]
[1736117312464,9.97766,214.13,214.12,2.3354]
[1736117316166,4.3152,214.23,214.15,2.3351]
[1736117316478,7.43766,214.17,214.1,6.80991146]
[1736117316668,5.75182238,214.25,214.1,6.80991146]
[1736117316870,7.43766,214.17,214.1,6.80991146]
[1736117317963,7.43766,214.17,214.16,2.335]
[1736117338487,7.43766,214.17,214.14,2.3351]
[1736117338786,7.43766,214.15,214.14,2.3351]
[1736117340787,7.43766,214.15,214.09,115.52793479]
[1736117340984,7.43766,214.11,214.09,115.52793479]
[1736117342492,7.43766,214.11,214.1,2.3356]
[1736117345388,7.43766,214.11,214.07,2.3359]
[1736117345592,7.43766,214.08,214.07,2.3359]
[1736117345992,2.58,214.08,214.07,2.3359]
[1736117346193,10.01766,214.08,214.01,6.45300278]
[1736117346387,7.43766,214.06,214.01,6.45300278]
[1736117346691,7.43766,214.06,213.98,34.64917112]
[1736117347387,7.43766,214.06,214.05,2.3362]
[1736117366003,10.01766,214.06,214.05,2.3362]
[1736117375310,7.43766,214.06,214.05,2.3362]
[1736117375505,10.01766,214.06,214.05,2.3362]
[1736117378413,2.58,214.06,214.05,2.3362]
[1736117378713,10.01766,214.06,214.05,2.3362]
[1736117379914,7.43766,214.06,214.05,2.3362]
[1736117380114,10.01766,214.06,214.05,2.3362]
[1736117382110,7.43766,214.06,214.05,2.3362]
[1736117382311,10.01766,214.06,214.05,2.3362]
[1736117422047,9.99766,214.06,214.05,2.3362]
[1736117422448,12.33376,214.06,213.96,2.9743]
[1736117422654,7.43766,214.0,213.96,2.9743]
[1736117422947,9.99766,214.0,213.96,2.9743]
[1736117423151,9.99766,214.0,213.93,7.87030278]
[1736117423354,2.56,214.0,213.98,2.3369]
[1736117425348,7.43766,213.99,213.97,2.3371]
[1736117425541,7.43766,213.98,213.97,2.3371]
[1736117437563,7.43766,213.98,213.89,5.97307383]
[1736117437758,7.43766,213.93,213.89,5.97307383]
[1736117438063,9.99766,213.93,213.89,5.97307383]
[1736117439660,9.99766,213.93,213.92,2.3376]
[1736117439863,2.56,213.93,213.92,2.3376]
[1736117446470,9.99766,213.93,213.92,2.3376]
[1736117447467,7.43766,213.93,213.92,2.3376]
[1736117447671,9.99766,213.93,213.92,2.3376]
[1736117459176,2.56,213.93,213.92,2.3376]
[1736117459481,9.99766,213.93,213.92,2.3376]
[1736117460875,2.56,213.93,213.92,2.3376]
[1736117461071,7.43766,213.94,213.93,2.3375]
[1736117461274,9.99766,213.94,213.93,2.3375]
[1736117462486,7.43766,213.94,213.93,2.3375]
[1736117462685,9.99766,213.94,213.93,2.3375]
[1736117466089,2.56,213.94,213.93,2.3375]
[1736117466283,9.99766,213.94,213.93,2.3375]
[1736117475900,2.56,213.94,213.93,2.3375]
[1736117476596,7.43766,213.95,213.94,2.3374]
[1736117476803,9.99766,213.95,213.94,2.3374]
[1736117490912,4.3467,214.01,213.89,5.97307383]
[1736117491107,2.56,214.0,213.97,2.337]
[1736117491606,2.8785,214.01,213.98,2.3369]
[1736117491809,50.8087786,214.05,213.9,1.4249]
[1736117492014,2.56,214.04,213.9,4.3443]
[1736117492310,7.43766,214.01,213.92,7.43766]
[1736117492609,7.43766,214.01,214.0,2.3367]
[1736117493411,2.56,214.04,213.93,2.56]
[1736117493602,2.56,214.04,214.02,2.3365]
[1736117493803,7.43766,214.03,214.02,2.3365]
[1736117517131,2.56,214.04,214.02,2.3365]
[1736117517728,7.43766,214.03,214.02,2.3365]
[1736117517927,2.3361,214.06,214.02,2.3365]
[1736117518128,7.43766,214.03,214.02,2.3365]
[1736117525538,2.56,214.05,214.02,2.3365]
[1736117525841,7.43766,214.03,214.02,2.3365]
[1736117528038,7.43766,214.04,214.02,2.3365]
[1736117564378,4.8961,214.06,214.02,2.3365]
[1736117564572,7.43766,214.04,214.02,2.3365]
[1736117569877,7.43766,214.04,214.01,2.3366]
[1736117571278,2.3362,214.05,214.01,2.3366]
[1736117571479,7.43766,214.04,214.01,2.3366]
[1736117581088,9.77396,214.04,214.01,2.3366]
[1736117592795,9.77396,214.04,213.93,2.54]
[1736117592998,9.77396,214.04,214.0,2.3367]
[1736117598400,7.43766,214.04,213.92,6.45300278]
[1736117598604,7.43766,213.99,213.97,2.337]
[1736117599202,7.43766,213.99,213.98,2.337]
[1736117599402,7.43766,213.99,213.92,6.45300278]
[1736117599604,7.43766,213.99,213.91,4.47414596]
[1736117600008,7.43766,213.99,213.96,2.3371]
[1736117601508,9.77456,213.99,213.96,2.3371]
[1736117602007,7.43766,213.99,213.96,2.3371]
[1736117603805,7.43766,213.99,213.91,4.47414596]
[1736117604007,7.43766,213.99,213.97,2.337]
[1736117611913,7.43766,213.99,213.98,2.337]
[1736117615723,2.3362,214.05,213.97,2.3371]
[1736117615914,7.43766,214.0,213.92,7.43766]
[1736117616722,7.43766,214.0,213.93,7.43766]
[1736117617021,7.43766,214.0,213.93,87.57608694]
[1736117617426,7.43766,214.0,213.99,2.3369]
[1736117625429,2.54,214.04,214.0,2.3367]
[1736117625626,7.43766,214.01,214.0,2.3367]
[1736117635636,7.40707541,214.01,214.0,2.3367]
[1736117637635,2.3362,214.05,214.01,2.3366]
[1736117637937,7.43766,214.05,213.96,7.43766]
[1736117638139,7.43766,214.05,213.97,4.3185]
[1736117639443,7.43766,214.05,214.04,2.3363]
[1736117644558,7.43766,214.05,214.03,2.3364]
[1736117644759,7.43766,214.04,214.03,2.3364]
[1736117650251,7.43766,214.04,213.97,4.3185]
[1736117650449,7.43766,214.02,214.01,2.3366]
[1736117657655,2.3361,214.06,214.01,2.3366]
[1736117657856,7.43766,214.02,214.01,2.3366]
[1736117659456,7.43766,214.02,213.99,2.3368]
[1736117664560,7.43766,214.02,213.93,87.57608694]
[1736117664765,7.43766,214.02,214.0,2.3367]
[1736117673369,7.43766,214.02,214.01,2.3366]
[1736117673669,4.8764,214.04,214.01,2.3366]
[1736117673863,7.43766,214.02,214.01,2.3366]
[1736117677173,9.97766,214.04,214.01,2.3366]
[1736117677468,4.8762,214.05,214.01,2.3366]
[1736117677674,12.31386,214.05,214.01,2.3366]
[1736117677868,4.8762,214.05,214.01,2.3366]
[1736117678079,7.43766,214.04,214.01,2.3366]
[1736117679875,4.8762,214.05,214.01,2.3366]
[1736117680074,7.43766,214.03,214.01,2.3366]
[1736117692783,9.97766,214.05,214.02,2.3365]
[1736117697989,12.31386,214.05,214.01,2.3366]
[1736117700603,4.8762,214.05,214.01,2.3366]
[1736117700791,7.43766,214.04,214.01,2.3366]
[1736117703099,4.8762,214.05,214.01,2.3366]
[1736117703295,12.31386,214.05,214.01,2.3366]
[1736117708799,4.8762,214.05,214.01,2.3366]
[1736117708998,7.43766,214.04,214.01,2.3366]
[1736117711994,9.97766,214.04,214.01,2.3366]
[1736117715000,2.54,214.04,214.01,2.3366]
[1736117715298,9.97766,214.04,214.01,2.3366]
[1736117736418,2.54,214.04,214.01,2.3366]
[1736117736714,9.97766,214.04,214.01,2.3366]
[1736117740319,2.54,214.04,214.01,2.3366]
[1736117740518,9.97766,214.04,214.01,2.3366]
[1736117750223,3.74139727,214.07,213.96,7.43766]
[1736117750526,194.8290597,214.18,214.05,89.05460808]
[1736117750728,169.79520975,214.16,214.08,7.43766]
[1736117750921,169.79520975,214.16,214.13,2.3353]
[1736117751226,169.79520975,214.16,214.07,7.43766]
[1736117751439,169.79520975,214.16,214.11,2.3355]
[1736117751629,7.43766,214.16,214.11,2.3355]
[1736117751828,7.43766,214.14,214.11,2.3355]
[1736117754519,9.97766,214.15,214.12,2.3354]
[1736117758422,2.54,214.15,214.12,2.3354]
[1736117758621,7.43766,214.14,214.13,2.3353]
[1736117759926,2.3354,214.12,214.07,2.336]
[1736117760126,2.54,214.15,214.05,77.18959466]
[1736117760127,7.43766,214.08,214.05,77.18959466]
[1736117760322,7.43766,214.06,214.05,77.18959466]
[1736117760626,7.43766,214.06,214.04,2.3363]
[1736117761827,2.56,214.08,214.04,2.3363]
[1736117762223,7.43766,214.07,214.04,2.3363]
[1736117762828,2.56,214.08,213.98,1.4382]
[1736117763129,2.56,214.08,213.99,7.43766]
[1736117763632,7.43766,214.06,214.02,2.3364]
[1736117764925,7.43766,214.06,213.98,8.87586]
[1736117765125,7.43766,214.06,214.03,2.3364]
[1736117769139,7.43766,214.07,214.03,2.3364]
[1736117769527,7.43766,214.07,214.04,2.3363]
[1736117775339,7.43766,214.07,214.05,2.3362]
[1736117784237,7.43766,214.07,213.98,1.4382]
[1736117784442,2.56,214.07,214.06,2.3361]
[1736117784742,9.99766,214.07,214.06,2.3361]
[1736117787341,2.56,214.07,214.06,2.3361]
[1736117787945,7.43766,214.08,214.02,7.43766]
[1736117788143,7.43766,214.08,214.07,2.336]
[1736117790442,2.9856,214.13,214.08,2.3358]
[1736117790649,7.43766,214.15,214.05,94.76713114]
[1736117791357,7.03413326,214.16,214.14,2.3352]
[1736117791547,7.43766,214.15,214.14,2.3352]
[1736117792145,7.03413326,214.16,214.14,2.3352]
[1736117792447,7.43766,214.15,214.14,2.3352]
[1736117792643,7.03413326,214.16,214.14,2.3352]
[1736117792842,7.43766,214.15,214.14,2.3352]
[1736117793247,7.03413326,214.16,214.15,2.3351]
[1736117793449,14.47179326,214.16,214.15,2.3351]
[1736117800859,7.03413326,214.16,214.15,2.3351]
[1736117802255,14.47179326,214.16,214.15,2.3351]
[1736117804358,11.91179326,214.16,214.15,2.3351]
[1736117804562,2.56,214.16,214.07,12.73405406]
[1736117805254,2.56,214.16,214.15,2.3351]
[1736117805459,1.4713,214.3,214.09,7.43766]
[1736117805660,2.56,214.19,214.09,7.43766]
[1736117805860,7.43766,214.19,214.13,2.3353]
[1736117806160,7.43766,214.19,214.11,7.43766]
[1736117806161,9.99766,214.19,214.11,7.43766]
[1736117807363,9.99766,214.19,214.17,2.3348]
[1736117807961,9.99766,214.19,214.18,2.3348]
[1736117810656,2.56,214.19,214.18,2.3348]
[1736117810861,2.334,214.25,214.21,2.3344]
[1736117811065,7.43766,214.22,214.21,2.3344]
[1736117811363,9.99766,214.22,214.21,2.3344]
[1736117811554,7.43766,214.22,214.21,2.3344]
[1736117811760,9.99766,214.22,214.21,2.3344]
[1736117812163,7.43766,214.22,214.21,2.3344]
[1736117812463,7.43766,214.24,214.22,2.3343]
[1736117812764,7.43766,214.24,214.17,7.43766]
[1736117812765,2.56,214.24,214.17,7.43766]
[1736117813568,2.56,214.24,214.23,2.3342]
[1736117825775,7.43766,214.26,214.17,7.43766]
[1736117826078,2.58,214.25,214.24,2.3341]
[1736117840082,2.58,214.25,214.19,7.43766]
[1736117840083,2.58,214.26,214.25,2.334]
[1736117844189,2.3334,214.31,214.25,2.334]
[1736117844385,2.58,214.28,214.25,2.334]
[1736117844793,2.58,214.28,214.21,7.43766]
[1736117844991,2.58,214.28,214.26,2.3339]
[1736117849193,7.43766,214.3,214.26,2.3339]
[1736117849392,2.56,214.29,214.26,2.3339]
[1736117849989,2.3334,214.31,214.26,2.3339]
[1736117850189,9.99766,214.3,214.26,2.3339]
[1736117851398,5.25774507,214.32,214.25,7.43766]
[1736117851794,7.81774507,214.32,214.25,7.43766]
[1736117852300,7.81774507,214.32,214.22,1.4891]
[1736117852599,7.81774507,214.32,214.28,2.3336]
[1736117852893,5.25774507,214.32,214.28,2.3336]
[1736117853090,7.81774507,214.32,214.28,2.3336]
[1736117853898,7.43766,214.31,214.28,2.3336]
[1736117855302,7.43766,214.31,214.24,7.43766]
[1736117856395,7.43766,214.31,214.28,2.3336]
[1736117857999,7.43766,214.31,214.29,2.3335]
[1736117859207,7.81774507,214.32,214.29,2.3335]
[1736117860107,5.25774507,214.32,214.29,2.3335]
[1736117860307,7.81774507,214.32,214.29,2.3335]
[1736117861306,4.893,214.34,214.3,2.3334]
[1736117861511,7.43766,214.33,214.3,2.3334]
[1736117868323,7.43766,214.33,214.26,7.43766]
[1736117868523,7.43766,214.33,214.31,2.3334]
[1736117873529,9.99766,214.33,214.31,2.3334]
[1736117875630,9.99766,214.33,214.32,2.3333]
[1736117888239,9.99766,214.33,214.2,105.12550823]
[1736117888240,9.99766,214.33,214.2,102.56550823]
[1736117888441,7.43766,214.28,214.27,2.3337]
[1736117888741,9.99766,214.28,214.27,2.3337]
[1736117890339,2.3333,214.32,214.28,2.3336]
[1736117890643,9.99766,214.31,214.28,2.3336]
[1736117891144,7.43766,214.29,214.28,2.3336]
[1736117891739,9.99766,214.31,214.28,2.3336]
[1736117893338,7.43766,214.31,214.28,2.3336]
[1736117893638,2.56,214.3,214.28,2.3336]
[1736117895940,2.56,214.3,214.2,102.56550823]
[1736117896241,7.43766,214.27,214.2,110.00316823]
[1736117897643,7.43766,214.27,214.26,2.3339]
[1736117898243,7.43766,214.28,214.2,110.00316823]
[1736117898446,7.43766,214.28,214.27,2.3338]
[1736117910457,9.99766,214.3,214.27,2.3338]
[1736117910756,2.3332,214.33,214.22,7.43766]
[1736117910951,1.4491,214.35,214.24,7.43766]
[1736117911255,2.9069,214.38,214.24,7.43766]
[1736117911256,7.43766,214.32,214.24,7.43766]
[1736117911455,2.56,214.31,214.24,7.43766]
[1736117911849,2.56,214.31,214.25,1.4398]
[1736117912454,2.56,214.31,214.3,2.3335]
[1736117928166,2.56,214.31,214.25,1.4398]